Cogmind - Beta 17 @@@ ROGUE MODE // 2026.08.02 @ 13:15:43 // Winter2022/Polymind Player: Minty Result: Destroyed by G-47 Trooper with Particle Gun Performance ------------- Evolutions (2) 1000 Regions Visited (5) 1000 Robots Destroyed (19) 95 Value Destroyed (574) 574 Prototype IDs (0) 0 Alien Tech Used (0) 0 Bonus (6810) 6810 TOTAL SCORE: 9319 Bonus ------- Polymind Skill 1410 Prayed to X0-1V1 5000 Major X0-1V1 Interference 400 Cogmind --------- Core Integrity 0/550 Matter 100/100 Energy 211/215 System Corruption 0% Temperature Cool (11) Movement Treading (160) Location -8/Storage Parts ------- > --- POWER (1) -------- Improved Ion Engine > --- PROPULSION (2) --- Light Treads Light Treads > --- UTILITY (3) ------ Heat Sink Heat Sink Light Armor Plating > --- WEAPON (2) ------- Beam Rifle Heavy Assault Rifle > --- INVENTORY (1) ---- (None) Peak State ------------ > --- POWER ------------ Light Angular Momentum Engine > --- PROPULSION ------- Carbon-fiber Leg Carbon-fiber Leg > --- UTILITY ---------- Advanced Heat Sink > --- WEAPON ----------- Heavy Laser > --- INVENTORY -------- (None) [Rating: 20] Favorites ----------- Power Light Ion Engine Engine Light Ion Engine Propulsion Wheel Treads Light Treads Leg Carbon-fiber Leg Wheel Wheel Flight Unit Flight Unit Utility Improved Terrain Scanner Device Improved Terrain Scanner Protection Light Armor Plating Weapon Mining Laser Energy Gun Beam Rifle Ballistic Gun Light Assault Rifle Special Weapon Mining Laser Build | -11 -10 -9 -9 -8 -8 ------- Run | Yrd Mat Mat Min Mat Sto Slots Evolved . | . . . . . . Power . | . . . . . . Propulsion . | . . . . . . Utility . | . . . . . . Weapon . | . . . . . . Parts Attached . | . . . . . . Power . | . . . . . . Engine . | . . . . . . Core . | . . . . . . Reactor . | . . . . . . Propulsion . | . . . . . . Treads . | . . . . . . Leg . | . . . . . . Wheel . | . . . . . . Hover . | . . . . . . Flight . | . . . . . . Utility . | . . . . . . Device . | . . . . . . Storage . | . . . . . . Processor . | . . . . . . Hackware . | . . . . . . Protection . | . . . . . . Artifact . | . . . . . . Weapon . | . . . . . . Energy Gun . | . . . . . . Energy Cannon . | . . . . . . Ballistic Gun . | . . . . . . Ballistic Cannon . | . . . . . . Launcher . | . . . . . . Special Weapon . | . . . . . . Impact Weapon . | . . . . . . Slashing Weapon . | . . . . . . Piercing Weapon . | . . . . . . Special Melee Weapon . | . . . . . . Unidentified Prototypes . | . . . . . . Parts Lost 18 | . 2 . . 16 . Power 3 | . . . . 3 . Propulsion 10 | . 2 . . 8 . Utility 2 | . . . . 2 . Weapon 3 | . . . . 3 . Highest Loss Streak 13 | . 2 . . 13 . To Critical Strikes . | . . . . . . Average Backups . | . . . . . . Power . | . . . . . . Propulsion . | . . . . . . Utility . | . . . . . . Weapon . | . . . . . . Tool/Special . | . . . . . . Unused Backups . | . . . . . . Power . | . . . . . . Propulsion . | . . . . . . Utility . | . . . . . . Weapon . | . . . . . . Tool/Special . | . . . . . . Average Slot Usage (%) 78 | . 66 100 100 72 100 Engine 14 | . 17 16 16 11 12 Treads 4 | . . . . 2 25 Leg 3 | . . . . 11 . Wheel 11 | . 12 33 33 5 . Flight 3 | . 4 . . 4 . Device 19 | . 12 33 33 18 25 Protection 2 | . . . . 1 12 Energy Gun 5 | . . . . 10 12 Ballistic Gun 7 | . 11 . . 4 12 Special Weapon 5 | . 6 16 16 2 . Peak Build Rating 20 | . 8 8 8 20 11 Average Rating 7 | . 4 8 8 9 11 On Entrance 5 | . . 8 8 8 11 Avg Prop Armor Cover (%) 30 | . . . . 30 . Naked Turns 59 | . 35 . . 24 . Heaviest Build 18 | . 6 6 6 18 18 Greatest Support 40 | 3 20 20 20 40 40 Greatest Overweight (x) 1 | . 1 . . 1 . Average Overweight (x) . | . . . . . . Largest Inventory Capacity 1 | . . . . 1 1 Average Capacity . | . . . . . 1 Most Carried . | . . . . . . Average Carried . | . . . . . . Final Capacity 1 | . . . . 1 1 Final Carried . | . . . . . . Class Distribution -------------------- 35% | Tunneler 22% | Swarmer 17% | Sentry 16% | Grunt 8% | Cogmind Dominant Class ---------------- Swarmer | -10/Materials Tunneler | -9/Materials Tunneler | -9/Mines Grunt | -8/Materials Sentry | -8/Storage Resources | -11 -10 -9 -9 -8 -8 ----------- Run | Yrd Mat Mat Min Mat Sto Matter Collected 10 | . 10 . . . . Remotely . | . . . . . . Salvage Created 261 | . 15 . . 246 . Parts 30 | . 12 . . 18 . Haulers Intercepted . | . . . . . . Recyclers Shooed . | . . . . . . Parts Field Recycled . | . . . . . . Retrieved Matter . | . . . . . . Parts Self-Destructed . | . . . . . . Prevented . | . . . . . . Parts Restored . | . . . . . . Kills | -11 -10 -9 -9 -8 -8 ------- Run | Yrd Mat Mat Min Mat Sto Combat Hostiles Destroyed 19 | . 7 . . 12 . Guns 17 | . 6 . . 11 . Cannons 1 | . 1 . . . . Classes Destroyed 2 | . 2 . . . . Swarmer 8 | . 5 . . 3 . Grunt 11 | . 2 . . 9 . Best Kill Streak 12 | . 4 . . 12 . Combat Bots Only 12 | . 4 . . 12 . Max Kills in Single Turn 1 | . 1 . . 1 . Gunslinging . | . . . . . . Exploded . | . . . . . . Melee . | . . . . . . Uniques/NPCs Destroyed . | . . . . . . Combat | -11 -10 -9 -9 -8 -8 -------- Run | Yrd Mat Mat Min Mat Sto Hostile Shots Fired 205 | . 52 . . 152 1 Missed 61 | . 17 . . 44 . Hits 144 | . 35 . . 108 1 Projectile 144 | . 35 . . 108 1 Critical Strikes 6 | . . . . 6 . Damage Taken 2048 | . 308 . . 1727 13 Core 733 | . 178 . . 542 13 Absorbed by Shields . | . . . . . . Core Remaining (%) 76 | 100 28 . 100 . . Volleys Fired 90 | . 31 . . 59 . Largest 1 | . 1 . . 1 . Hottest 100 | . 100 . . 69 . Shots Fired 90 | . 31 . . 59 . Gun 88 | . 29 . . 59 . Cannon . | . . . . . . Launcher . | . . . . . . Special 2 | . 2 . . . . Kinetic 45 | . 29 . . 16 . Thermal 45 | . 2 . . 43 . Explosive . | . . . . . . Electromagnetic . | . . . . . . Robot Hit Streak 16 | . 4 . . 16 . Robot Miss Streak 2 | . 2 . . 2 . Penetration Max . | . . . . . . Secondary Targets . | . . . . . . Shots Hit Robots 66 | . 20 . . 46 . Core Hits 32 | . 13 . . 19 . Critical Kills . | . . . . . . Critical Parts Destroyed . | . . . . . . Critical Strikes 1 | . . . . 1 . Burn 1 | . . . . 1 . Melee Attacks . | . . . . . . Impact . | . . . . . . Slashing . | . . . . . . Piercing . | . . . . . . Sneak Attacks . | . . . . . . Combat Hostiles . | . . . . . . Follow-up Attacks . | . . . . . . Damage Inflicted 964 | . 185 . . 779 . Guns 935 | . 156 . . 779 . Cannons . | . . . . . . Explosions . | . . . . . . Melee . | . . . . . . Ramming 3 | . 3 . . . . Kinetic 277 | . 156 . . 121 . Thermal 684 | . 26 . . 658 . Explosive . | . . . . . . Electromagnetic . | . . . . . . Impact . | . . . . . . Slashing . | . . . . . . Piercing . | . . . . . . Highest Corruption 1 | . 1 . . . . Average Corruption 1 | . 1 . . . . Corruption Purged . | . . . . . . Corruption Blocked . | . . . . . . Effects 1 | . 1 . . . . Energy Discharges 1 | . 1 . . . . Overload Shots . | . . . . . . Overflow Damage . | . . . . . . Projectiles . | . . . . . . Explosions . | . . . . . . Melee . | . . . . . . Knockbacks . | . . . . . . Impact . | . . . . . . Kinetic . | . . . . . . Secondary . | . . . . . . Self-Inflicted Damage 1 | . 1 . . . . Shots . | . . . . . . Rammed 1 | . 1 . . . . Targets Rammed 1 | . 1 . . . . Kicked . | . . . . . . Crushed . | . . . . . . Highest Temperature 227 | . 155 . . 227 . Average Temperature 71 | . 44 . . 92 . Received Heat Transfer 945 | . 54 . . 882 9 Siege Activations . | . . . . . . Martial Activations . | . . . . . . Shielding Activations . | . . . . . . Robots Disrupted . | . . . . . . Combat Hostiles . | . . . . . . Robots Corrupted . | . . . . . . Combat Hostiles . | . . . . . . Parts Fried . | . . . . . . Impact Corruptions . | . . . . . . Robots Melted 1 | . . . . 1 . Combat Hostiles 1 | . . . . 1 . Parts Melted 3 | . . . . 3 . Heat Transferred 1382 | . 50 . . 1332 . Parts Sabotaged . | . . . . . . Parts Stolen . | . . . . . . Parts Stripped . | . . . . . . Power Chain Reactions . | . . . . . . Alert | -11 -10 -9 -9 -8 -8 ------- Run | Yrd Mat Mat Min Mat Sto Maximum Alert Level . | . . . . . . Low Security (%) 100 | . 100 100 100 100 100 Level 1 . | . . . . . . Level 2 . | . . . . . . Level 3 . | . . . . . . Level 4 . | . . . . . . Level 5 . | . . . . . . High Security . | . . . . . . Max Security . | . . . . . . Peak Influence 168 | . 95 35 1 168 57 Initial 57 | . . 35 1 . 57 Average 64 | . 63 23 . 95 36 Influence Increases 624 | . 216 . . 408 . Destroy 0b10 Robot/C 380 | . 140 . . 240 . Destroy Leader 50 | . 30 . . 20 . Destroy Structure 2 | . 1 . . 1 . Lose Combat Pursuer 90 | . 45 . . 45 . Miscellaneous 102 | . . . . 102 . Influence Decreases 617 | . 131 80 5 270 131 Entered New Map 135 | . . 50 4 . 81 Time Decay 301 | . 110 30 1 110 50 Lost Part 180 | . 20 . . 160 . Miscellaneous 1 | . 1 . . . . Squads Dispatched 7 | . 1 . . 5 1 Investigation 2 | . . . . 1 1 Extermination . | . . . . . . Reinforcement 5 | . 1 . . 4 . Assault . | . . . . . . Garrison . | . . . . . . Intercept . | . . . . . . Searches Triggered . | . . . . . . Construction Impeded . | . . . . . . Haulers Reinforced . | . . . . . . Active Scanning Responses . | . . . . . . Cargo Convoy Interrupts . | . . . . . . Stealth | -11 -10 -9 -9 -8 -8 --------- Run | Yrd Mat Mat Min Mat Sto Distress Signals 3 | . 1 . . 2 . Communications Jammed . | . . . . . . Distress Signals . | . . . . . . Times Spotted 59 | . 16 . . 40 3 Peak Tracking Total 10 | . 4 . . 10 . Tactical Retreats 5 | . 3 . . 2 . Traps | -11 -10 -9 -9 -8 -8 ------- Run | Yrd Mat Mat Min Mat Sto Traps Triggered 2 | . 2 . . . . Indirectly . | . . . . . . Trap Hack Attempts . | . . . . . . Triggered . | . . . . . . Disarmed . | . . . . . . Reprogrammed . | . . . . . . Reused . | . . . . . . Traps Extracted . | . . . . . . Installed . | . . . . . . Triggered . | . . . . . . Machines | -11 -10 -9 -9 -8 -8 ---------- Run | Yrd Mat Mat Min Mat Sto Machines Disabled . | . . . . . . Max in Single Turn . | . . . . . . Machines Repaired . | . . . . . . Machines Dismantled . | . . . . . . Machines Sabotaged . | . . . . . . Overloaded Fab Kills . | . . . . . . Hacking | -11 -10 -9 -9 -8 -8 --------- Run | Yrd Mat Mat Min Mat Sto Machines Accessed 2 | . . . . 1 1 Terminals . | . . . . . . Fabricators . | . . . . . . Repair Stations 1 | . . . . 1 . Recycling Units . | . . . . . . Scanalyzers . | . . . . . . Garrison Access 1 | . . . . . 1 Total Hacks 5 | . . . . 3 2 Successful . | . . . . . . Failed 5 | . . . . 3 2 Catastrophic 1 | . . . . 1 . Database Lockouts . | . . . . . . Manual 3 | . 1 . . . 2 Terminals . | . . . . . . Fabricators . | . . . . . . Repair Stations 3 | . . . . 3 . Recycling Units . | . . . . . . Scanalyzers . | . . . . . . Garrison Access 2 | . . . . . 2 Terminal Hacks . | . . . . . . Fabricator Hacks . | . . . . . . Repair Station Hacks . | . . . . . . Recycling Unit Hacks . | . . . . . . Scanalyzer . | . . . . . . Garrison Access Hacks . | . . . . . . Unauthorized Hacks . | . . . . . . Terminals . | . . . . . . Fabricators . | . . . . . . Repair Stations . | . . . . . . Recycling Units . | . . . . . . Scanalyzers . | . . . . . . Garrison Access . | . . . . . . Data Cores Recovered . | . . . . . . Used . | . . . . . . Hacking Detections 2 | . . . . 1 1 Full Trace Events 2 | . . . . 1 1 Feedback Events . | . . . . . . Feedback Blocked . | . . . . . . Robot Schematics Acquired . | . . . . . . Robots Built . | . . . . . . Authchips . | . . . . . . Time . | . . . . . . Total Robot Build Rating . | . . . . . . Part Schematics Acquired . | . . . . . . Parts Built . | . . . . . . Authchips . | . . . . . . Time . | . . . . . . Total Part Build Rating . | . . . . . . Part Studies Acquired . | . . . . . . Parts Repaired . | . . . . . . Time . | . . . . . . Parts Recycled . | . . . . . . Recycled Matter . | . . . . . . Retrieved Matter . | . . . . . . Retrieved Components . | . . . . . . Parts Scanalyzed . | . . . . . . Part Schematics Acquired . | . . . . . . Parts Damaged . | . . . . . . Bothacking | -11 -10 -9 -9 -8 -8 ------------ Run | Yrd Mat Mat Min Mat Sto Used RIF Installer . | . . . . . . Robots Hacked 5 | . 1 . . 4 . Non-combat . | . . . . . . Combat 5 | . 1 . . 4 . Robot Hacks Applied 9 | . 1 . . 8 . find_shortcuts 5 | . 1 . . 4 . find_garrison 4 | . . . . 4 . Relay Couplers Released . | . . . . . . Fabnet Peak Effective % . | . . . . . . Robots Rewired . | . . . . . . Allies Hacked . | . . . . . . Hacks Repelled . | . . . . . . Allies | -11 -10 -9 -9 -8 -8 -------- Run | Yrd Mat Mat Min Mat Sto Total Allies . | . . . . . . Largest Group . | . . . . . . Highest-Rated Group . | . . . . . . Highest-Rated Ally . | . . . . . . Total Orders . | . . . . . . Ally Attacks . | . . . . . . Total Damage . | . . . . . . Kills . | . . . . . . Allies Corrupted . | . . . . . . Allies Melted . | . . . . . . X0-1V1 Amusement Gains 51 | . 21 . . 30 . Good Acts 2 | . . . . 2 . Bad Acts 4 | . . . . 4 . Intel | -11 -10 -9 -9 -8 -8 ------- Run | Yrd Mat Mat Min Mat Sto Active Infowar (turns) 235 | . 91 64 25 55 . Terrain 235 | . 91 64 25 55 . Seismic 226 | . 91 64 25 46 . Robot Analysis Total 4 | . 2 . . 2 . Derelict Logs Recovered . | . . . . . . Drone Launches . | . . . . . . Drone Recoveries . | . . . . . . Exploration | -11 -10 -9 -9 -8 -8 ------------- Run | Yrd Mat Mat Min Mat Sto Turns Passed 670 | . 249 64 25 231 101 Spaces Moved 534 | 1 248 75 32 114 64 Core 170 | 1 127 . . 42 . Treads 74 | . . . . 10 64 Legs 12 | . . . . 12 . Wheels 248 | . 93 75 32 48 . Hover . | . . . . . . Flight 30 | . 28 . . 2 . Fastest Speed 37 | 50 37 80 80 37 160 Average Speed 87 | 50 71 80 80 86 160 Slowest Speed 160 | 50 100 80 80 160 160 Overloaded Moves . | . . . . . . Propulsion Burnouts . | . . . . . . Robots Hopped 1 | . 1 . . . . Potential Cave-ins . | . . . . . . Cave-ins Triggered . | . . . . . . Exploration Rate (%) 19 | 2 47 18 12 20 16 Regions Visited 5 Branch Regions 2 Pre-discovered Areas 1 | . . . 1 . . Known Exits Taken . | . . . . . . Unknown Exits Taken 5 | 1 1 1 1 1 . Scrap Searched . | . . . . . . Spaces Dug . | . . . . . . Terrain Destroyed 1 | . 1 . . . . Melee . | . . . . . . Projectile 1 | . 1 . . . . AOE . | . . . . . . Terrain Rammed . | . . . . . . Walls Destroyed . | . . . . . . Machines Disabled . | . . . . . . Actions | -11 -10 -9 -9 -8 -8 --------- Run | Yrd Mat Mat Min Mat Sto Total 651 | . 288 78 31 190 64 Wait 20 | . 2 . . 18 . Move 527 | . 245 74 31 113 64 Hop 1 | . 1 . . . . Pick Up . | . . . . . . Fast Attach . | . . . . . . Attach . | . . . . . . Detach . | . . . . . . Swap . | . . . . . . Drop . | . . . . . . Fire 90 | . 31 . . 59 . Melee . | . . . . . . Ram 1 | . 1 . . . . Kick . | . . . . . . Crush . | . . . . . . Escape Stasis . | . . . . . . Rewire . | . . . . . . Trap . | . . . . . . Miscellaneous 12 | . 8 4 . . . Route ------- -11/Scrapyard -10/Materials (discovered 3 exits: [*Mat x2] / [*Sub]) -9/Materials -9/Mines -8/Materials -8/Storage History --------- Turn | Location | Event 1 | -11/Scrapyard | Discovered new exit (range 0) 1 | -11/Scrapyard | Entered Materials 107 | -10/Materials | Core integrity fell below 50% 148 | -10/Materials | Discovered new exit (range 10) 204 | -10/Materials | Discovered new exit (range 11) 226 | -10/Materials | Discovered new exit (range 3) 231 | -10/Materials | Prayed at D.C.S.S. Altar Unit 250 | -10/Materials | Entered another Materials area 311 | -9/Materials | Discovered new exit (range 5) 314 | -9/Materials | Entered Mines 331 | -9/Mines | Discovered new exit (range 9) 332 | -9/Mines | Learned location of Storage (-8) 339 | -9/Mines | Entered Materials 357 | -8/Materials | X0-1V1 added 0b10 threat records associated with you (minor) 456 | -8/Materials | Core integrity fell below 50% 491 | -8/Materials | Core integrity fell below 20% 515 | -8/Materials | Lost 13 parts (3p7n1u2w) 538 | -8/Materials | Destroyed 12 combat bots 539 | -8/Materials | Discovered new exit (range 11) 564 | -8/Materials | Lost 3 parts (1n1u1w) 570 | -8/Materials | Entered Storage 671 | -8/Storage | Destroyed by G-47 Trooper with Particle Gun Last Messages --------------- 00533_ Carbon-fiber Leg destroyed. 00533_ X0-1V1 is mildly amused. 00533_ Lost control of G-50 Soldier. 00535_ U-05 Engineer builds a Wall. 00539_ EXIT=FOUND 00540_ W-25 Informer sends out distress signal. IFF burst signal emitted. 00541_ X0-1V1: "Don't be shy now." 00555_ Took control of Y-45 Defender. 00555_ Extracted analysis data for Y-45 Defender. 00556_ W-25 Informer sends out distress signal. 00563_ Critical hit (Burn: +37). LOCATION=UNKNOWN GOAL=ESCAPE 00582_ Connecting with Garrison Access... 00582_ Current location identified: Storage 00582_ ALERT: Suspicious activity at Garrison Access S001. Dispatching Investigation squad. Prototype Device suddenly appears amidst shimmering waves of color. 00671_ X0-1V1 chortles! Map ----- +----------------------------------------------------+ | ???????????????# #####????????????? | | ???????????????#^ """ # #????????????? | | ???????????????# """ # #????????????? | | ???????????????# """ # !#????????????? | | ???????????????# """ # #????????????? | | ???????????????# """ # ####?????????? | | ???????????????# + """#?????????? | | ???????????????# """ # G"#?????????? | | ???????????????# """ # """#?????????? | | ???????????????# """ + ####?????????? | | ???????????????# """ # #??#####?????? | | ???????????????# """ # #?? ??????? | | ???????????????# # #? """ #???? | | ??????????############# #? """ #???? | | ??????????# # # """ #???? | | ??????????# #o # #???? | | ??????????# """"" + + """ #???? | | ??????????# """"" # # """ #???? | | ??????????# """"" # # """ ????? | | ?????????# # #? ?????? | | ??????????# # #?#######????? | | ??????????############# #????????????? | | ??????????????????????# bg#????????????? | | ??????????????????????#^^ #????????????? | | ??????????????????????#g #????????????? | | ??????????????????????# Y#????????????? | | ???????????????????#""" +????????????? | | ???????????????????#"Y g #????????????? | | ???????????????????#""" #????????????? | | ???????????????????#### #????????????? | | ??????????????????????#g #????????????? | | ?????????????????????? ????????????? | | ?????????????????????? ????????????? | | ????????????????????? T ????????????? | | ????????????????????? ????????????? | | ????????????????????## ????????????? | | ?????????????????????######????????????? | | ???????????????????????????????????????? | | ???????????????????????????????????????? | | ???????????????????????????????????????? | | ???????????????????????????????????????? | | ???????????????????????????????????????? | | ???????????????????????????????????????? | | ???????????????????????????????????????? | | ???????????????????????????????????????? | | ???????????????????????????????????????? | | ???????????????????????????????????????? | | ???????????????????????????????????????? | | ???????????????????????????????????????? | | ???????????????????????????????????????? | +----------------------------------------------------+ Best States ------------- Heat Dissipation 42 Energy Generation 23 Energy Capacity 215 Matter Stores 100 Matter Capacity 100 Sight Range 16 Terrain Scan Range 16 Terrain Scan Density 10 Armor Coverage 150 Resistance: EX 50 Resistance: I 25 Evasion (%) 62 Recoil Reduction 2 Item Schematics ----------------- None Robot Schematics ------------------ None Fabricated ------------ Nothing Repaired ---------- Nothing Studied --------- None Alien Tech Used ----------------- None Achievements -------------- None Challenges ------------ None Polymind | -11 -10 -9 -9 -8 -8 ---------- Run | Yrd Mat Mat Min Mat Sto Hosts 6 | . 2 . . 4 . Combat Hostiles 5 | . 1 . . 4 . Allies . | . . . . . . Unique Host Classes 4 | . 2 . . 2 . Average Host Suspicion 69 | . 87 24 5 87 35 Unsuspicious Activity 62 | . 42 20 . . . Returns to Shadow . | . . . . . . Fuzzy Dispatches . | . . . . . . Protomatter Created 182 | . 25 . . 157 . Used 130 | . 11 . . 119 . Decayed . | . . . . . . Highest Spend 45 | . 6 . . 45 . Top 5 Hosts by Kills: S-10 Pest (-10/Materials: 6) G-50 Soldier (-8/Materials: 6) S-10 Pest (-8/Materials: 3) G-50 Soldier (-8/Materials: 3) T-07 Excavator (-10/Materials: 1) Game ------ Seed ThunderScimitarTurretformer Manual? 0 Play Time 00:05:11 Cumulative 1351.1 hours Start 2026.08.02 @ 13:10:56 End 2026.08.02 @ 13:15:43 Sessions 1 Manual Loads 0 Difficulty Rogue Special Mode Winter2022/Polymind Game No. 1654 Rogue 1370 Adventurer 124 Explorer 160 Win Type - Total 68 Types 53/0/9/4/1/0/0/1/0/0 Lore% 93 Gallery% 84 Achievement% 73 Wizard Run 0 Options --------- Layout 0 ASCII 0 Keyboard 1 Movement Numpad Keybinds 0 Fullscreen 2 Font 18/X11 Map View 76x50 Zoom Use 0% Tactical HUD 1 Map Filters NONE Filters NONE Steam 1 RUN: 5096dd89-1428-4c6d-abc1-adfd545b5fb9